bitfinex/quotes_SOLUSD_20220118
["timestamp","ask_amount","ask_price","bid_price","bid_amount"]
[1642516906203,457.9,135.67,135.61,0.25]
[1642516906604,457.9,135.67,135.61,11.0549]
[1642516906805,457.9,135.67,135.62,11.17584921]
[1642516908433,457.9,135.67,135.62,11.0552]
[1642516908635,457.9,135.67,135.59,36.8497]
[1642516909537,457.9,135.67,135.6,36.93738546]
[1642516909837,45.9154134,135.66,135.56,50.6171]
[1642516910036,45.9154134,135.66,135.56,2.948]
[1642516910237,2.949,135.65,135.56,2.948]
[1642516910435,8.949,135.65,135.56,2.948]
[1642516910637,0.25,135.64,135.56,2.948]
[1642516910834,8.949,135.65,135.56,2.948]
[1642516911038,457.9,135.67,135.56,2.948]
[1642516911234,2.949,135.66,135.53,2.949]
[1642516911436,8.949,135.66,135.56,11.0601]
[1642516911836,40.7159383,135.65,135.53,43.31193919]
[1642516912037,8.95,135.64,135.53,40.36293919]
[1642516912237,9.2,135.64,135.53,40.36293919]
[1642516912437,20.263,135.64,135.53,40.36293919]
[1642516912938,43.79072355,135.62,135.53,40.36293919]
[1642516913237,0.25,135.61,135.53,40.36293919]
[1642516913446,6.25,135.61,135.53,40.36293919]
[1642516913642,2.95,135.62,135.54,0.25]
[1642516913838,4.13994846,135.64,135.54,74.1]
[1642516913839,7.08994846,135.64,135.54,74.1]
[1642516914138,4.13994846,135.64,135.54,77.05]
[1642516914344,0.25,135.63,135.54,77.31]
[1642516914640,4.13994846,135.64,135.54,77.31]
[1642516914842,4.13994846,135.64,135.54,85.468]
[1642516915040,4.13994846,135.65,135.55,11.0605]
[1642516915238,4.13994846,135.65,135.56,0.25]
[1642516916046,457.9,135.67,135.58,11.0574]
[1642516916243,457.9,135.67,135.59,0.25]
[1642516916441,6.0,135.66,135.59,0.25]
[1642516916642,6.0,135.66,135.58,11.0574]
[1642516916942,6.0,135.66,135.56,15.54881944]
[1642516917141,42.11242511,135.65,135.57,0.25]
[1642516917342,42.11242511,135.65,135.56,2.949]
[1642516917541,45.06142511,135.65,135.51,8.9]
[1642516917741,45.06142511,135.65,135.54,0.25]
[1642516917941,42.11242511,135.65,135.54,0.25]
[1642516918142,0.25,135.64,135.54,0.25]
[1642516918348,0.25,135.64,135.55,2.949]
[1642516918543,0.25,135.65,135.54,0.25]
[1642516919143,37.49028329,135.65,135.54,45.38764276]
[1642516919542,48.55218329,135.65,135.55,11.0613]
[1642516919743,2.949,135.64,135.55,11.0613]
[1642516919943,55.64113175,135.65,135.55,11.0613]
[1642516920345,55.64113175,135.65,135.54,45.38764276]
[1642516920547,17.0628,135.64,135.54,45.13764276]
[1642516920746,7.33994846,135.63,135.5,76.799]
[1642516920949,7.33994846,135.63,135.5,2.949]
[1642516921148,7.33994846,135.63,135.51,0.25]
[1642516921352,6.0,135.62,135.51,0.25]
[1642516921549,2.95,135.61,135.51,0.25]
[1642516921750,14.265,135.61,135.51,0.25]
[1642516921949,13.03994846,135.63,135.51,80.1]
[1642516922150,4.13994846,135.63,135.52,3.2]
[1642516922552,8.3138985,135.6,135.52,3.46]
[1642516922750,51.0414849,135.6,135.52,12.69060767]
[1642516922952,62.1069849,135.6,135.52,0.25]
[1642516923151,0.25,135.59,135.51,6.0]
[1642516923352,0.25,135.59,135.49,51.7815]
[1642516923353,0.25,135.59,135.5,6.0]
[1642516923753,3.201,135.59,135.47,6.0]
[1642516923956,11.0676,135.58,135.46,11.07]
[1642516924153,3.201,135.57,135.44,2.951]
[1642516924354,8.9,135.56,135.4,15.8841597]
[1642516924553,8.952,135.55,135.4,15.8841597]
[1642516924755,9.202,135.55,135.4,15.8841597]
[1642516924955,11.071,135.54,135.42,11.0734]
[1642516925157,0.25,135.53,135.44,13.09882574]
[1642516925557,45.75186296,135.53,135.44,13.09882574]
[1642516926160,45.75186296,135.53,135.43,2.952]
[1642516926161,56.82306296,135.53,135.43,2.952]
[1642516926359,11.852,135.52,135.39,24.4167]
[1642516926563,17.852,135.52,135.39,24.4167]
[1642516926759,0.25,135.51,135.39,24.4167]
[1642516926961,2.953,135.5,135.4,185.55]
[1642516927179,14.9,135.52,135.4,185.55]
[1642516927180,6.0,135.52,135.4,78.50567512]
[1642516927384,6.0,135.52,135.4,89.24504859]
[1642516927584,6.0,135.53,135.41,0.25]
[1642516927787,0.25,135.52,135.42,2.952]
[1642516927986,0.25,135.52,135.43,47.74680246]
[1642516928185,11.3225,135.52,135.43,58.81900246]
[1642516929391,11.3225,135.52,135.43,59.07900246]
[1642516929591,2.952,135.54,135.47,11.0699]
[1642516929787,2.952,135.54,135.48,0.25]
[1642516929988,4.13994846,135.56,135.48,3.201]
[1642516930188,464.07576803,135.59,135.48,3.201]
[1642516930189,4.13994846,135.57,135.49,8.16495617]
[1642516930587,4.13994846,135.57,135.5,6.25]
[1642516930791,4.13994846,135.57,135.52,11.0645]
[1642516931189,4.13994846,135.63,135.53,0.25]
[1642516931793,15.20284846,135.63,135.54,11.0636]
[1642516931991,15.20284846,135.63,135.55,73.85]
[1642516931992,4.13994846,135.63,135.55,73.85]
[1642516932292,2.95,135.65,135.55,74.11]
[1642516932293,4.13994846,135.64,135.55,74.11]
[1642516932591,4.13994846,135.64,135.53,36.28940229]
[1642516932791,14.0134,135.63,135.55,11.0628]
[1642516932991,35.25910834,135.62,135.55,11.0628]
[1642516933193,35.50910834,135.62,135.55,11.0628]
[1642516933592,35.50910834,135.62,135.5,29.2115]
[1642516933792,2.95,135.61,135.5,6.0]
[1642516933991,2.95,135.61,135.47,6.0]
[1642516933992,11.068,135.58,135.47,6.0]
[1642516934194,36.8933,135.6,135.48,0.25]
[1642516934195,3.201,135.57,135.48,0.25]
[1642516934392,0.25,135.57,135.48,0.25]
[1642516934996,0.25,135.57,135.48,6.25]
[1642516935398,35.0460458,135.55,135.48,6.0]
[1642516935597,35.0460458,135.55,135.47,2.951]
[1642516935798,0.25,135.54,135.47,2.951]
[1642516936905,0.25,135.54,135.45,67.43351297]
[1642516937099,0.25,135.54,135.46,0.25]
[1642516937500,2.952,135.57,135.46,11.3208]
[1642516937701,7.09094846,135.6,135.47,76.801]
[1642516937902,2.08282142,135.55,135.47,87.40367512]
[1642516938102,2.08282142,135.55,135.48,41.85394859]
[1642516938303,2.08282142,135.55,135.49,11.851]
[1642516938530,2.08282142,135.6,135.5,19.34784566]
[1642516938734,2.08282142,135.6,135.53,11.063]
[1642516939233,2.08282142,135.6,135.54,74.1]
[1642516939433,2.08282142,135.6,135.55,45.51391297]
[1642516939631,2.08282142,135.61,135.55,59.04391297]
[1642516939835,2.08282142,135.61,135.56,0.25]
[1642516940631,2.08282142,135.64,135.56,0.25]
[1642516941235,2.08282142,135.64,135.57,11.059]
[1642516941433,2.08282142,135.64,135.55,51.51391297]
[1642516941634,2.949,135.63,135.55,45.51391297]
[1642516941936,2.08282142,135.64,135.55,45.51391297]
[1642516942135,2.08282142,135.64,135.55,53.70491297]
[1642516942335,2.08282142,135.64,135.58,11.0575]
[1642516942533,2.08282142,135.64,135.59,19.34784566]
[1642516942733,2.08282142,135.64,135.59,19.85784566]
[1642516943634,2.08282142,135.64,135.59,13.85784566]
[1642516943834,2.08282142,135.68,135.6,73.85]
[1642516944035,2.08282142,135.68,135.6,84.9077]
[1642516944237,2.08282142,135.68,135.61,0.25]
[1642516944440,2.08282142,135.68,135.62,2.948]
[1642516944638,2.08282142,135.68,135.62,76.798]
[1642516944839,2.08282142,135.68,135.63,0.25]
[1642516945038,3.51100059,135.71,135.65,24.0]
[1642516945234,3.51100059,135.71,135.66,11.3025]
[1642516945734,3.51100059,135.71,135.66,11.5625]
[1642516945935,3.51100059,135.71,135.67,6.0]
[1642516946135,3.51100059,135.71,135.68,11.0497]
[1642516946337,0.00010059,135.71,135.69,6.0643]
[1642516946537,6.17576803,135.74,135.69,12.0643]
[1642516946737,6.17576803,135.74,135.7,0.25]
[1642516946939,36.77,135.81,135.7,0.25]
[1642516947137,2.946,135.8,135.7,0.25]
[1642516947340,35.75729914,135.79,135.7,0.25]
[1642516947539,36.00729914,135.79,135.7,0.25]
[1642516947740,36.00729914,135.79,135.68,0.25]
[1642516947939,8.947,135.78,135.67,42.8365]
[1642516948140,8.947,135.78,135.67,6.0]
[1642516948339,0.25,135.77,135.65,23.8471]
[1642516948540,2.947,135.76,135.66,6.25]
[1642516948740,0.25,135.75,135.66,6.25]
[1642516948940,2.947,135.76,135.67,39.40082384]
[1642516949242,2.947,135.83,135.68,0.25]
[1642516949444,6.54563909,135.84,135.68,6.25]
[1642516949445,2.946,135.79,135.68,6.25]
[1642516949641,2.946,135.83,135.69,2.946]
[1642516950042,2.946,135.83,135.7,15.8928688]
[1642516950243,11.0485,135.81,135.74,39.40082384]
[1642516950442,2.946,135.8,135.74,45.76982384]
[1642516950642,9.49163909,135.84,135.75,6.25]
[1642516950844,6.54563909,135.84,135.75,6.25]
[1642516951042,6.54563909,135.84,135.75,6.51]
[1642516951244,6.54563909,135.84,135.76,21.64775594]
[1642516951444,6.54563909,135.84,135.77,9.6428688]
[1642516951643,6.54563909,135.84,135.77,101.5878688]
[1642516951842,6.54563909,135.84,135.77,110.0138688]
[1642516952046,0.36987106,135.84,135.77,110.0138688]
[1642516952443,0.36987106,135.84,135.77,36.1638688]
[1642516952644,0.36987106,135.84,135.79,11.0411]
[1642516952844,0.36987106,135.84,135.8,34.52543696]
[1642516953044,0.36987106,135.84,135.8,40.52543696]
[1642516953745,0.36987106,135.84,135.81,0.25]
[1642516953943,0.36987106,135.84,135.82,6.0643]
[1642516954145,0.36987106,135.84,135.83,6.0]
[1642516954347,36.8045,135.94,135.83,6.0]
[1642516954550,41.27480148,135.94,135.84,14.14838462]
[1642516955047,6.0,135.93,135.84,14.14838462]
[1642516955249,2.943,135.92,135.78,2.943]
[1642516955447,3.193,135.92,135.77,22.5713]
[1642516955647,6.0,135.91,135.78,6.25]
[1642516955847,2.944,135.9,135.78,6.25]
[1642516956048,6.0,135.89,135.78,6.25]
[1642516956252,13.9875,135.88,135.79,45.23404857]
[1642516956448,11.0435,135.88,135.79,45.23404857]
[1642516956948,0.25,135.87,135.77,22.5713]
[1642516957178,3.194,135.87,135.77,22.5713]
[1642516957347,14.2384,135.87,135.77,22.5713]
[1642516957749,14.2384,135.87,135.78,0.25]
[1642516957950,11.2944,135.87,135.78,47.19470636]
[1642516958149,49.15453439,135.86,135.75,48.1624]
[1642516958349,69.09943439,135.86,135.75,2.944]
[1642516958548,9.195,135.85,135.71,2.945]
[1642516958749,18.095,135.85,135.71,36.822]
[1642516959249,18.095,135.85,135.7,2.946]
[1642516959250,54.9222,135.85,135.72,45.06023678]
[1642516959464,18.095,135.85,135.72,56.10893678]
[1642516959654,6.25,135.85,135.73,3.195]
[1642516959850,8.9,135.89,135.75,36.8125]
[1642516960049,6.0,135.88,135.76,8.944]
[1642516960251,8.944,135.91,135.76,9.194]
[1642516960449,8.944,135.91,135.76,85.00441743]
[1642516960650,11.0421,135.9,135.77,3.6135848]
[1642516960857,8.9,135.92,135.79,36.8012]
[1642516961050,2.944,135.93,135.8,79.85]
[1642516961253,8.9,135.97,135.8,106.56401743]
[1642516961460,8.9,135.99,135.8,115.46401743]
[1642516961757,11.0357,135.98,135.86,11.0349]
[1642516961956,11.0357,135.98,135.87,3.6135848]
[1642516962160,11.843,135.99,135.87,4.1235848]
[1642516962355,11.843,135.99,135.87,12.5225848]
[1642516962555,2.943,135.99,135.87,12.5225848]
[1642516962762,2.943,135.99,135.87,14.22300223]
[1642516962957,2.942,136.01,135.87,14.22300223]
[1642516963156,2.942,136.01,135.88,73.85]
[1642516963557,2.942,136.01,135.89,0.25]
[1642516963958,6.0,136.0,135.89,0.25]
[1642516964158,47.57173274,135.99,135.91,34.97966852]
[1642516964360,6.0,136.0,135.91,34.97966852]
[1642516964985,6.0,136.01,135.91,34.97966852]
[1642516965187,6.0,136.01,135.92,3.191]
[1642516965386,6.0,136.01,135.94,13.69415306]
[1642516965585,6.0,136.01,135.93,11.0311]
[1642516966085,41.78911043,136.02,135.93,11.0311]
[1642516966292,0.02481203,136.02,135.93,11.0311]
[1642516966688,0.02481203,136.02,135.94,0.25]
[1642516967187,0.02481203,136.02,135.97,37.70319967]
[1642516967788,0.02481203,136.02,135.97,37.96319967]
[1642516967988,0.02481203,136.02,135.98,6.0]
[1642516968188,0.02481203,136.02,135.98,20.2175]
[1642516968589,0.02481203,136.02,135.98,20.4775]
[1642516969589,3.028,136.11,135.98,20.4775]
[1642516969789,0.087,136.11,135.99,8.9]
[1642516969993,0.087,136.11,136.02,11.0192]
[1642516970189,0.087,136.11,136.03,3.189]
[1642516970390,0.087,136.11,136.03,35.07321743]
[1642516970589,0.087,136.11,136.04,73.0550911]
[1642516970788,0.087,136.11,136.05,3.189]
[1642516970996,0.07962902,136.15,136.05,21.90831743]
[1642516971188,0.07962902,136.15,136.06,10.60041743]
[1642516971592,0.07962902,136.15,136.08,73.85]
[1642516971790,0.07962902,136.15,136.09,0.25]
[1642516971990,0.07962902,136.15,136.09,42.9653]
[1642516972188,0.07962902,136.15,136.09,43.2253]
[1642516972389,0.07962902,136.15,136.1,11.0146]
[1642516972601,0.07962902,136.15,136.11,6.0]
[1642516972790,0.07962902,136.15,136.12,0.25]
[1642516972991,0.07962902,136.15,136.13,6.0643]
[1642516973191,0.07962902,136.15,136.13,42.7708]
[1642516973391,0.07962902,136.15,136.14,11.012]
[1642516974091,0.07962902,136.15,136.13,6.0643]
[1642516974900,0.07962902,136.15,136.12,23.55665782]
[1642516975299,0.07962902,136.15,136.13,0.25]
[1642516975498,0.07962902,136.15,136.12,23.55665782]
[1642516975693,0.07962902,136.15,136.12,34.57265782]
[1642516975897,0.07962902,136.15,136.12,11.016]
[1642516976094,6.17576803,136.24,136.13,64.0]
[1642516976298,2.937,136.28,136.16,0.39167217]
[1642516976497,2.937,136.28,136.26,5.32981533]
[1642516976696,10.37252365,136.32,136.26,5.32981533]
[1642516977094,10.37252365,136.32,136.27,24.35272028]
[1642516977499,39.01586629,136.36,136.27,24.35272028]
[1642516977500,22.6612,136.36,136.27,24.61272028]
[1642516977702,22.6612,136.36,136.28,10.85040403]
[1642516978297,22.6612,136.36,136.28,21.85200403]
[1642516978496,22.1612,136.36,136.28,22.11200403]
[1642516978695,22.1612,136.36,136.29,1.70040403]
[1642516978896,22.1612,136.36,136.3,11.834]
[1642516979097,22.1612,136.36,136.3,18.084]
[1642516979295,22.1612,136.36,136.31,1.70040403]
[1642516979495,13.07153605,136.36,136.32,24.87964359]
[1642516979695,13.07153605,136.36,136.33,10.9984]
[1642516980300,13.07153605,136.36,136.3,8.9]
[1642516980803,10.07153605,136.36,136.28,2.932]
[1642516981004,10.07153605,136.36,136.27,11.834]
[1642516981200,39.4932906,136.35,136.27,11.834]
[1642516981401,2.934,136.35,136.27,15.99103908]
[1642516981600,0.18471191,136.42,136.27,7.09103908]
[1642516981601,2.934,136.41,136.27,7.09103908]
[1642516982000,6.0,136.4,136.27,19.79544311]
[1642516982201,6.0,136.4,136.28,8.9]
[1642516982401,6.0,136.4,136.3,12.70781522]
[1642516982601,6.18471191,136.42,136.3,12.70781522]
[1642516982803,2.932,136.41,136.3,12.70781522]
[1642516983001,0.18471191,136.42,136.31,4.88240403]
[1642516983202,0.18471191,136.42,136.31,24.06780403]
[1642516983432,0.18471191,136.42,136.32,10.60040403]
[1642516983602,0.18471191,136.42,136.33,2.932]
[1642516983802,2.932,136.48,136.33,17.93944311]
[1642516984002,2.932,136.48,136.33,18.19944311]
[1642516984205,2.932,136.48,136.35,10.996]
[1642516984402,5.68471191,136.49,136.36,2.932]
[1642516984602,5.68471191,136.49,136.37,8.9]
[1642516984803,5.68471191,136.49,136.38,2.931]
[1642516985004,2.931,136.52,136.38,11.831]
[1642516985311,35.51935121,136.48,136.38,11.831]
[1642516985504,35.51935121,136.48,136.35,8.9]
[1642516985705,3.182,136.47,136.35,8.9]
[1642516985908,12.10763,136.47,136.32,8.9]
[1642516986104,7.42563,136.46,136.3,1.70040403]
[1642516986306,49.7096357,136.45,136.31,15.90953812]
[1642516986508,11.0012,136.44,136.31,15.90953812]
[1642516986703,2.932,136.43,136.31,15.90953812]
[1642516986904,49.4596357,136.45,136.31,17.60994215]
[1642516987306,2.932,136.45,136.32,9.15]
[1642516987606,2.932,136.5,136.35,10.9965]
[1642516987808,2.932,136.5,136.36,9.15]
[1642516988005,6.0,136.49,136.36,10.85040403]
[1642516988205,6.0,136.49,136.38,1.45531618]
[1642516988409,6.0,136.49,136.39,10.9926]
[1642516988607,41.30643198,136.48,136.39,10.9926]
[1642516988810,38.37543198,136.48,136.35,4.63582359]
[1642516989108,8.932,136.47,136.34,55.7085]
[1642516989312,6.0,136.47,136.35,2.932]
[1642516989510,3.182,136.46,136.33,1.70482359]
[1642516989713,35.62379873,136.45,136.33,1.70482359]
[1642516989924,2.932,136.44,136.3,4.63682359]
[1642516990112,9.182,136.44,136.27,13.53682359]
[1642516990314,9.182,136.44,136.3,2.932]
[1642516990510,11.0026,136.42,136.28,13.9353]
[1642516990710,42.69769017,136.41,136.29,15.56582773]
[1642516990948,3.182,136.41,136.28,2.932]
[1642516991111,2.932,136.41,136.28,2.932]
[1642516991311,2.932,136.41,136.29,8.9]
[1642516991512,13.9338,136.43,136.29,19.9021]
[1642516991713,13.9338,136.43,136.29,8.9]
[1642516991912,47.16619641,136.41,136.29,8.9]
[1642516992112,47.16619641,136.41,136.25,10.47687664]
[1642516992113,17.832,136.4,136.25,10.47687664]
[1642516992313,17.832,136.4,136.23,20.797321]
[1642516992314,91.682,136.4,136.23,8.9]
[1642516992514,0.25,136.39,136.22,2.934]
[1642516992715,11.834,136.38,136.2,7.54487664]
[1642516992918,11.834,136.38,136.2,10.47887664]
[1642516993114,45.18572526,136.37,136.21,16.81761408]
[1642516993314,11.0096,136.34,136.21,16.81761408]
[1642516993515,11.0096,136.34,136.2,2.934]
[1642516993516,2.935,136.33,136.2,2.934]
[1642516993717,0.25,136.33,136.2,2.934]
[1642516994014,2.935,136.32,136.2,2.934]
[1642516994217,0.25,136.31,136.2,2.934]
[1642516994416,11.2619,136.31,136.2,2.934]
[1642516994614,14.1969,136.31,136.18,2.935]
[1642516994814,8.92563,136.3,136.16,2.935]
[1642516995015,11.836,136.29,136.14,2.936]
[1642516995225,12.086,136.29,136.13,2.936]
[1642516995418,12.086,136.29,136.11,34.58762595]
[1642516995419,6.0,136.28,136.11,22.69030495]
[1642516995617,11.0165,136.26,136.12,12.21759893]
[1642516995816,2.936,136.25,136.12,12.21759893]
[1642516996018,14.9,136.28,136.13,2.936]
[1642516996221,0.25,136.27,136.13,16.53413803]
[1642516996418,0.25,136.27,136.14,28.74356634]
[1642516996617,0.25,136.27,136.14,28.99356634]
[1642516996824,0.25,136.27,136.15,44.90502171]
[1642516997018,0.25,136.27,136.15,53.80502171]
[1642516997221,38.87692433,136.28,136.16,1.95081703]
[1642516997427,38.87692433,136.28,136.17,2.936]
[1642516997621,11.0124,136.3,136.17,4.63681703]
[1642516997821,2.936,136.32,136.18,11.897321]
[1642516998024,8.28174329,136.35,136.19,8.935]
[1642516998222,2.935,136.34,136.2,8.9]
[1642516998447,8.28174329,136.35,136.21,15.15259893]
[1642516998647,2.935,136.39,136.22,8.9]
[1642516998847,2.935,136.39,136.23,2.934]
[1642516999047,10.37252365,136.4,136.27,84.8528]
[1642516999348,10.37252365,136.4,136.28,12.082]
[1642516999550,11.18955294,136.42,136.28,12.082]
[1642516999551,11.18955294,136.42,136.28,19.78281703]
[1642516999748,8.25555294,136.42,136.29,6.8480724]
[1642516999948,8.25555294,136.42,136.3,11.832]
[1642517000150,8.25555294,136.42,136.31,11.0011]
[1642517000653,11.832,136.46,136.31,11.0011]
[1642517000848,11.832,136.46,136.15,87.4930211]
[1642517000849,11.832,136.46,136.27,8.9]
[1642517001054,7.78905272,136.45,136.27,8.9]
[1642517001248,2.932,136.44,136.28,3.182]
[1642517001452,2.932,136.44,136.29,22.04303355]
[1642517001651,2.6454955,136.44,136.29,22.04303355]
[1642517001954,8.26030626,136.46,136.3,80.1]
[1642517002150,0.25,136.45,136.31,8.9]
[1642517002352,2.932,136.45,136.32,10.9987]
[1642517002551,2.932,136.45,136.32,19.8987]
[1642517002750,2.932,136.45,136.33,4.22182075]
[1642517002950,2.932,136.45,136.33,13.37182075]
[1642517003158,2.932,136.48,136.33,13.37182075]
[1642517003352,2.932,136.5,136.33,13.63182075]
[1642517003551,6.0,136.49,136.36,10.9968]
[1642517003756,2.932,136.48,136.36,20.0728]
[1642517003953,2.932,136.48,136.37,13.14303355]
[1642517004152,6.0,136.47,136.37,13.14303355]
[1642517004353,37.99539624,136.46,136.37,13.14303355]
[1642517004556,41.17739624,136.46,136.34,2.932]
[1642517004756,41.17739624,136.46,136.34,11.832]
[1642517005254,41.17739624,136.46,136.34,8.9]
[1642517005457,41.17739624,136.46,136.35,12.729299]
[1642517005660,0.25,136.46,136.38,15.6314553]
[1642517006061,6.25,136.49,136.38,15.6314553]
[1642517006255,2.931,136.48,136.38,15.6314553]
[1642517006659,6.0,136.47,136.38,15.6314553]
[1642517007061,6.0,136.47,136.38,10.9959]
[1642517007062,36.65731608,136.46,136.38,10.9959]
[1642517007560,2.932,136.45,136.33,110.5058]
[1642517007760,3.182,136.45,136.33,36.6558]
[1642517007961,3.182,136.45,136.32,2.932]
[1642517008160,39.7257664,136.43,136.3,13.43512171]
[1642517008358,2.932,136.42,136.3,13.43512171]
[1642517008558,3.182,136.42,136.33,3.92973259]
[1642517009360,3.182,136.42,136.3,36.6645]
[1642517009958,2.932,136.42,136.3,36.6645]
[1642517010161,2.932,136.43,136.34,10.9994]
[1642517010461,10.9983,136.46,136.34,10.9994]
[1642517010462,13.9303,136.46,136.34,10.9994]
[1642517010667,10.9983,136.46,136.34,10.9994]
[1642517011059,48.65578009,136.45,136.33,19.39120181]
[1642517011361,48.65578009,136.45,136.32,8.9]
[1642517011561,11.0004,136.43,136.31,35.7282]
[1642517011761,2.932,136.42,136.29,2.932]
[1642517012563,11.004,136.39,136.3,13.99821641]
[1642517012765,2.932,136.4,136.3,13.99821641]
[1642517012964,2.932,136.44,136.3,20.88221641]
[1642517013167,36.77,136.5,136.31,10.84271968]
[1642517013370,6.0,136.43,136.31,16.84271968]
[1642517013663,50.48701426,136.47,136.33,3.36663789]
[1642517013864,53.41901426,136.47,136.33,3.36663789]
[1642517014466,10.9977,136.46,136.34,36.6544]
[1642517014666,2.932,136.47,136.35,3.182]
[1642517014866,2.932,136.47,136.29,15.36387664]
[1642517014867,64.0,136.47,136.29,15.36387664]
[1642517015067,8.9,136.46,136.17,75.0494]
[1642517015266,111.56306235,136.44,136.2,2.932]
[1642517015486,122.2614,136.42,136.18,2.934]
[1642517015672,132.01963,136.41,136.18,2.934]
[1642517015970,132.01963,136.41,136.16,68.9062]
[1642517015971,41.22270531,136.4,136.19,26.2774776]
[1642517016167,11.834,136.39,136.2,2.934]
[1642517016469,11.0045,136.37,136.22,2.9846977]
[1642517016768,3.184,136.36,136.22,2.9846977]
[1642517016970,6.0,136.36,136.23,0.25]
[1642517017206,2.934,136.39,136.23,0.25]
[1642517017370,8.9,136.4,136.23,54.4712]
[1642517017568,11.0033,136.38,136.23,54.4712]
[1642517017768,2.934,136.37,136.23,48.4712]
[1642517018070,8.9,136.36,136.23,48.4712]
[1642517018372,2.934,136.35,136.23,48.4712]
[1642517018667,51.1962983,136.37,136.24,0.25]
[1642517018870,48.2622983,136.37,136.23,48.4712]
[1642517019069,0.25,136.36,136.23,48.4712]
[1642517019272,44.03608184,136.34,136.22,27.3664977]
[1642517019471,8.9,136.33,136.22,27.3664977]
[1642517019673,11.0102,136.31,136.22,27.3664977]
[1642517019875,2.935,136.3,136.22,2.9846977]
[1642517020075,0.25,136.3,136.22,2.9846977]
[1642517020280,0.25,136.31,136.22,2.9846977]
[1642517021077,2.1897171,136.32,136.22,2.9846977]
[1642517021281,11.2592,136.31,136.18,26.8614]
[1642517021478,23.0942,136.31,136.18,23.9264]
[1642517022278,23.0942,136.31,136.19,28.55995675]
[1642517022679,43.41199182,136.3,136.19,28.55995675]
[1642517022882,11.0111,136.28,136.19,31.49495675]
[1642517023081,48.52922365,136.27,136.17,2.936]
[1642517023280,57.71522365,136.27,136.16,23.4753]
[1642517023482,8.9,136.26,136.16,23.4753]
[1642517023679,0.25,136.25,136.16,23.4753]
[1642517023879,6.25,136.25,136.16,23.4753]
[1642517024090,6.25,136.25,136.17,28.4706228]
[1642517024482,11.0147,136.24,136.17,28.4706228]
[1642517024702,0.25,136.23,136.17,28.4706228]
[1642517024902,0.25,136.23,136.13,2.936]
[1642517025103,0.25,136.23,136.11,2.936]
[1642517025304,0.25,136.23,136.11,3.186]
[1642517025507,6.0,136.25,136.12,6.0]
[1642517025705,17.0141,136.25,136.13,3.186]
[1642517026006,58.37868906,136.3,136.14,6.0]
[1642517026206,8.9,136.31,136.15,3.186]
[1642517026403,2.936,136.3,136.15,10.063]
[1642517026603,8.9,136.33,136.16,6.0]
[1642517026906,11.0092,136.3,136.19,11.0092]
[1642517027103,59.15464803,136.3,136.2,77.04662903]
[1642517027703,59.15464803,136.3,136.2,3.19662903]
[1642517027907,59.15464803,136.3,136.17,49.0323]
[1642517028305,62.09064803,136.3,136.17,49.0323]
[1642517028512,8.9,136.29,136.16,22.7834]
[1642517028805,43.68474105,136.25,136.15,24.29344394]
[1642517029005,46.62074105,136.25,136.15,24.29344394]
[1642517029206,8.9,136.25,136.15,24.29344394]
[1642517029607,2.936,136.27,136.15,24.29344394]
[1642517029908,36.77,136.29,136.16,3.186]
[1642517030106,36.77,136.29,136.16,2.936]
[1642517030306,73.89641633,136.29,136.16,2.936]